fUSD/lending_fUSD_20260507
["ID","MTS","AMOUNT","RATE_DAILY","PERIOD"]
[421739140,1778086248000,-25877.32509415,0.0002,2]
[421739138,1778086248000,-7067.96587589,0.0002,2]
[421739136,1778086248000,-500.0,0.00019999,2]
[421739124,1778086248000,-151.0,0.0001995,2]
[421739134,1778086248000,-2291.17,0.00019968,2]
[421739118,1778086248000,-4222.51984884,0.0001995,15]
[421739120,1778086248000,-151.0,0.0001995,2]
[421739111,1778086248000,-2389.0849043,0.0001995,15]
[421739106,1778086248000,-618.63268591,0.0001995,15]
[421739103,1778086248000,-2559.996707,0.0001995,15]
[421739099,1778086248000,-150.0,0.00016137,2]
[421739101,1778086248000,-648.83564988,0.00016385,2]
[421739169,1778086248000,-224.0,0.0002,2]
[421739126,1778086248000,-151.0,0.0001995,2]
[421739167,1778086248000,-266.0,0.0002,2]
[421739225,1778086248000,-4852.99,0.00020548,2]
[421739173,1778086248000,-511.82672965,0.00020125,2]
[421739171,1778086248000,-4609.0,0.00020054,2]
[421739223,1778086248000,-4852.99,0.00020548,2]
[421739227,1778086248000,-275.0,0.00020631,2]
[421739221,1778086248000,-4852.99,0.00020548,2]
[421739219,1778086248000,-4852.99,0.00020548,2]
[421739234,1778086248000,-156.8,0.00020632,2]
[421739232,1778086248000,-199.0,0.00020631,2]
[421739216,1778086248000,-4852.99,0.00020548,2]
[421739209,1778086248000,-4852.99,0.00020548,2]
[421739201,1778086248000,-4852.99,0.00020548,2]
[421739205,1778086248000,-4852.99,0.00020548,2]
[421739214,1778086248000,-4852.99,0.00020548,2]
[421739203,1778086248000,-4852.99,0.00020548,2]
[421739207,1778086248000,-4852.99,0.00020548,2]
[421739212,1778086248000,-4852.99,0.00020548,2]
[421739229,1778086248000,-150.0,0.00020631,2]
[421739199,1778086248000,-4987.46,0.00020548,2]
[421739195,1778086248000,-4987.46,0.00020548,2]
[421739177,1778086248000,-511.82672965,0.00020256,2]
[421739185,1778086248000,-4987.46,0.00020548,2]
[421739179,1778086248000,-451.94273924,0.00020274,2]
[421739181,1778086248000,-14705.30426414,0.00020278,2]
[421739183,1778086248000,-2257.8,0.00020381,2]
[421739175,1778086248000,-3856.01342329,0.00020238,2]
[421739189,1778086248000,-4987.46,0.00020548,2]
[421739190,1778086248000,-4987.46,0.00020548,2]
[421739192,1778086248000,-4987.46,0.00020548,2]
[421739191,1778086248000,-4987.46,0.00020548,2]
[421739193,1778086248000,-4987.46,0.00020548,2]
[421739188,1778086248000,-4987.46,0.00020548,2]
[421739197,1778086248000,-4987.46,0.00020548,2]
[421739332,1778086249000,-224.0,0.00022,2]
[421739328,1778086249000,-696.0,0.00022,2]
[421739326,1778086249000,-276.0,0.00022,2]
[421739324,1778086249000,-158.0,0.00022,2]
[421739321,1778086249000,-263.0,0.00022,2]
[421739301,1778086249000,-5000.0,0.00021918,2]
[421739319,1778086249000,-160.0,0.00022,15]
[421739315,1778086249000,-531.0,0.00022,2]
[421739299,1778086249000,-500.0,0.00021917,2]
[421739303,1778086249000,-1909.32,0.00021918,5]
[421739330,1778086249000,-266.0,0.00022,2]
[421739317,1778086249000,-1903.68171823,0.00022,2]
[421739297,1778086249000,-1903.68171823,0.000218,2]
[421739358,1778086249000,-35948.84403507,0.000225,2]
[421739343,1778086249000,-500.0,0.00022303,2]
[421739334,1778086249000,-281.794868,0.00022,2]
[421739341,1778086249000,-1628.88638461,0.00022247,2]
[421739336,1778086249000,-4862.0,0.00022059,2]
[421739345,1778086249000,-2257.8,0.00022353,2]
[421739360,1778086249000,-156.8,0.00022507,2]
[421739362,1778086249000,-501.40628083,0.00022972,2]
[421739366,1778086249000,-1010.56060319,0.00023,2]
[421739347,1778086249000,-518.58739321,0.00022354,2]
[421739349,1778086249000,-1903.68171823,0.000224,2]
[421739353,1778086249000,-1412.32,0.00022466,2]
[421739351,1778086249000,-150.0,0.00022445,2]
[421739313,1778086249000,-450.0,0.00022,2]
[421739338,1778086249000,-1903.68171823,0.000222,2]
[421739311,1778086249000,-150.0,0.00022,2]
[421739264,1778086249000,-266.0,0.00021,2]
[421739307,1778086249000,-1000.0,0.00021918,5]
[421739364,1778086249000,-5900.38076727,0.00023,2]
[421739236,1778086249000,-22926.97907708,0.000207,2]
[421739239,1778086249000,-151.0,0.000207,2]
[421739243,1778086249000,-151.0,0.000207,2]
[421739241,1778086249000,-151.0,0.000207,2]
[421739256,1778086249000,-263.0,0.00021,2]
[421739258,1778086249000,-158.0,0.00021,2]
[421739247,1778086249000,-151.0,0.000207,2]
[421739249,1778086249000,-151.0,0.000207,2]
[421739252,1778086249000,-288.88,0.00020942,2]
[421739253,1778086249000,-531.0,0.00021,2]
[421739262,1778086249000,-696.0,0.00021,2]
[421739266,1778086249000,-224.0,0.00021,2]
[421739260,1778086249000,-276.0,0.00021,2]
[421739272,1778086249000,-500.0,0.00021168,2]
[421739270,1778086249000,-2000.0,0.00021028,2]
[421739277,1778086249000,-574.83,0.00021326,2]
[421739275,1778086249000,-206.41,0.00021273,2]
[421739283,1778086249000,-237.28,0.00021445,2]
[421739286,1778086249000,-150.0,0.00021478,2]
[421739288,1778086249000,-58241.82039864,0.000215,2]
[421739279,1778086249000,-296.59,0.00021338,2]
[421739281,1778086249000,-237.27,0.00021439,2]
[421739290,1778086249000,-160.0,0.00021513,2]
[421739292,1778086249000,-1903.68171823,0.000216,2]
[421739295,1778086249000,-500.0,0.00021653,2]
[421739305,1778086249000,-467.95,0.00021918,5]
[421739309,1778086249000,-1190.66,0.00021918,5]
[421739368,1778086249000,-531.0,0.00023,2]
[421739245,1778086249000,-151.0,0.000207,2]
[421739370,1778086249000,-160.0,0.00023,19]
[421739434,1778086249000,-2257.8,0.00024324,2]
[421739431,1778086249000,-500.0,0.00024226,2]
[421739433,1778086249000,-504.0,0.000243,3]
[421739436,1778086249000,-151.0,0.00024388,2]
[421739444,1778086249000,-624.0,0.00024409,2]
[421739442,1778086249000,-151.0,0.00024388,2]
[421739446,1778086249000,-1352.0,0.00024409,2]
[421739438,1778086249000,-151.0,0.00024388,2]
[421739440,1778086249000,-151.0,0.00024388,2]
[421739448,1778086249000,-3536.0,0.00024409,2]
[421739450,1778086249000,-925.0,0.00024409,2]
[421739452,1778086249000,-1268.0,0.00024409,2]
[421739454,1778086249000,-928.0,0.00024409,2]
[421739456,1778086249000,-417.0,0.00024409,2]
[421739458,1778086249000,-3625.0,0.00024409,2]
[421739462,1778086249000,-151.0,0.00024409,2]
[421739468,1778086249000,-151.0,0.00024658,2]
[421739460,1778086249000,-151.0,0.00024409,2]
[421739464,1778086249000,-150.0,0.00024658,2]
[421739466,1778086249000,-220.8,0.00024658,2]
[421739470,1778086249000,-151.0,0.00024658,2]
[421739476,1778086249000,-155.35,0.00024658,2]
[421739478,1778086249000,-153.3,0.00024658,2]
[421739472,1778086249000,-1000.0,0.00024658,2]
[421739474,1778086249000,-150.0,0.00024658,2]
[421739482,1778086249000,-500.0,0.00024953,2]
[421739480,1778086249000,-5529.0,0.000249,5]
[421739429,1778086249000,-2597.46164578,0.0002421,2]
[421739427,1778086249000,-600.0,0.00024014,30]
[421739355,1778086249000,-2900.0,0.000225,15]
[421739423,1778086249000,-235.25459908,0.00024,2]
[421739372,1778086249000,-263.0,0.00023,2]
[421739374,1778086249000,-276.0,0.00023,2]
[421739384,1778086249000,-214.60306816,0.00023213,2]
[421739392,1778086249000,-300.0,0.00023244,30]
[421739376,1778086249000,-696.0,0.00023,2]
[421739386,1778086249000,-3856.01342329,0.00023215,2]
[421739390,1778086249000,-1050.0,0.00023244,2]
[421739425,1778086249000,-1650.0,0.00024014,2]
[421739378,1778086249000,-160.0,0.00023,7]
[421739382,1778086249000,-224.0,0.00023,2]
[421739394,1778086249000,-350.0,0.00023257,2]
[421739380,1778086249000,-266.0,0.00023,2]
[421739396,1778086249000,-488.013214,0.00023386,14]
[421739398,1778086249000,-401.18521548,0.000235,2]
[421739388,1778086249000,-14705.30426414,0.00023224,2]
[421739402,1778086249000,-150.0,0.00023626,2]
[421739400,1778086249000,-279.41113781,0.00023602,2]
[421739421,1778086249000,-271.0,0.00024,2]
[421739408,1778086249000,-445.42301396,0.00023973,2]
[421739418,1778086249000,-292.0,0.00024,2]
[421739417,1778086249000,-269.0,0.00024,2]
[421739406,1778086249000,-350.0,0.00023781,2]
[421739404,1778086249000,-159.0,0.00023657,3]
[421739419,1778086249000,-710.01454641,0.00024,2]
[421739416,1778086249000,-160.0,0.00024,22]
[421739415,1778086249000,-548.0,0.00024,2]
[421739414,1778086249000,-500.0,0.00024,2]
[421739412,1778086249000,-3600.0,0.00024,2]
[421739410,1778086249000,-1035.52786894,0.00024,2]
[421739559,1778086250000,-10103.56541502,0.00026,2]
[421739571,1778086250000,-550.0,0.00026038,2]
[421739565,1778086250000,-550.0,0.00026038,2]
[421739557,1778086250000,-214.60306816,0.00026,10]
[421739563,1778086250000,-160.0,0.00026,28]
[421739547,1778086250000,-1100.0,0.00025817,2]
[421739567,1778086250000,-550.0,0.00026038,2]
[421739554,1778086250000,-166.921,0.00025989,2]
[421739552,1778086250000,-706.0,0.00025817,2]
[421739551,1778086250000,-1100.0,0.00025817,2]
[421739549,1778086250000,-1100.0,0.00025817,2]
[421739556,1778086250000,-27245.69333692,0.00026,10]
[421739569,1778086250000,-550.0,0.00026038,2]
[421739597,1778086250000,-1050.0,0.00026069,2]
[421739576,1778086250000,-550.0,0.00026038,2]
[421739578,1778086250000,-550.0,0.00026038,2]
[421739585,1778086250000,-1050.0,0.00026069,2]
[421739579,1778086250000,-550.0,0.00026038,2]
[421739583,1778086250000,-1050.0,0.00026069,2]
[421739589,1778086250000,-1050.0,0.00026069,2]
[421739587,1778086250000,-1050.0,0.00026069,2]
[421739590,1778086250000,-1050.0,0.00026069,2]
[421739581,1778086250000,-609.0,0.00026038,2]
[421739591,1778086250000,-1050.0,0.00026069,2]
[421739593,1778086250000,-1050.0,0.00026069,2]
[421739595,1778086250000,-1050.0,0.00026069,2]
[421739545,1778086250000,-1100.0,0.00025817,2]
[421739573,1778086250000,-550.0,0.00026038,2]
[421739543,1778086250000,-1100.0,0.00025817,2]
[421739519,1778086250000,-441.0,0.00025496,2]
[421739525,1778086250000,-500.0,0.00025701,2]
[421739601,1778086250000,-166.74,0.00026137,2]
[421739484,1778086250000,-20667.37805702,0.00025,7]
[421739488,1778086250000,-214.60306816,0.00025,7]
[421739486,1778086250000,-160.0,0.00025,25]
[421739490,1778086250000,-155.35,0.00025,7]
[421739492,1778086250000,-153.3,0.00025,7]
[421739494,1778086250000,-250.0,0.00025205,2]
[421739496,1778086250000,-155.35,0.00025342,30]
[421739498,1778086250000,-153.3,0.00025342,30]
[421739508,1778086250000,-500.0,0.00025496,2]
[421739512,1778086250000,-500.0,0.00025496,2]
[421739510,1778086250000,-500.0,0.00025496,2]
[421739514,1778086250000,-500.0,0.00025496,2]
[421739500,1778086250000,-500.0,0.00025496,2]
[421739517,1778086250000,-500.0,0.00025496,2]
[421739504,1778086250000,-500.0,0.00025496,2]
[421739502,1778086250000,-500.0,0.00025496,2]
[421739506,1778086250000,-500.0,0.00025496,2]
[421739521,1778086250000,-155.35,0.00025685,2]
[421739523,1778086250000,-153.3,0.00025685,2]
[421739537,1778086250000,-1100.0,0.00025817,2]
[421739533,1778086250000,-206.41,0.00025786,2]
[421739535,1778086250000,-1100.0,0.00025817,2]
[421739529,1778086250000,-175.99001891,0.00025722,21]
[421739527,1778086250000,-206.39,0.00025721,2]
[421739539,1778086250000,-1100.0,0.00025817,2]
[421739531,1778086250000,-350.0,0.00025753,2]
[421739541,1778086250000,-1100.0,0.00025817,2]
[421739599,1778086250000,-734.0,0.00026069,2]
[421739561,1778086250000,-550.0,0.00026,2]
[421739611,1778086250000,-550.0,0.0002618,2]
[421739646,1778086250000,-500.0,0.00027397,2]
[421739653,1778086250000,-200.0,0.00027397,2]
[421739652,1778086250000,-1500.0,0.00027397,2]
[421739650,1778086250000,-221.65227949,0.00027397,2]
[421739649,1778086250000,-500.0,0.00027397,2]
[421739647,1778086250000,-500.0,0.00027397,2]
[421739645,1778086250000,-500.0,0.00027397,2]
[421739654,1778086250000,-220.8,0.00027397,2]
[421739644,1778086250000,-500.0,0.00027397,2]
[421739651,1778086250000,-207.26359102,0.00027397,2]
[421739656,1778086250000,-151.0,0.00027397,2]
[421739666,1778086250000,-151.0,0.00027397,2]
[421739661,1778086250000,-151.0,0.00027397,2]
[421739643,1778086250000,-279.41113781,0.00027355,2]
[421739668,1778086250000,-151.0,0.00027397,2]
[421739655,1778086250000,-300.0,0.00027397,2]
[421739667,1778086250000,-151.0,0.00027397,2]
[421739660,1778086250000,-151.0,0.00027397,2]
[421739658,1778086250000,-151.0,0.00027397,2]
[421739659,1778086250000,-151.0,0.00027397,2]
[421739664,1778086250000,-151.0,0.00027397,2]
[421739662,1778086250000,-151.0,0.00027397,2]
[421739663,1778086250000,-151.0,0.00027397,2]
[421739665,1778086250000,-151.0,0.00027397,2]
[421739669,1778086250000,-151.0,0.00027397,2]
[421739670,1778086250000,-151.0,0.00027397,2]
[421739671,1778086250000,-151.0,0.00027397,2]
[421739609,1778086250000,-550.0,0.0002618,2]
[421739657,1778086250000,-207.56617486,0.00027397,2]
[421739640,1778086250000,-747.0,0.00027123,2]
[421739648,1778086250000,-500.0,0.00027397,2]
[421739641,1778086250000,-506.0,0.00027137,2]
[421739607,1778086250000,-550.0,0.0002618,2]
[421739603,1778086250000,-14705.30426414,0.0002617,2]
[421739605,1778086250000,-1628.88638461,0.00026178,2]
[421739613,1778086250000,-550.0,0.0002618,2]
[421739638,1778086250000,-334.0297243,0.00027123,2]
[421739621,1778086250000,-642.0,0.0002618,2]
[421739620,1778086250000,-550.0,0.0002618,2]
[421739617,1778086250000,-550.0,0.0002618,2]
[421739619,1778086250000,-550.0,0.0002618,2]
[421739624,1778086250000,-300.0,0.00026223,2]
[421739622,1778086250000,-3856.01342329,0.00026191,2]
[421739623,1778086250000,-498.0,0.00026223,2]
[421739628,1778086250000,-501.52296871,0.00026472,2]
[421739630,1778086250000,-480.85466589,0.00026974,2]
[421739615,1778086250000,-550.0,0.0002618,2]
[421739629,1778086250000,-303.45901732,0.00026849,2]
[421739627,1778086250000,-450.0,0.00026301,2]
[421739637,1778086250000,-372.0,0.00027123,2]
[421739635,1778086250000,-153.55693177,0.00027123,20]
[421739636,1778086250000,-557.0,0.00027123,2]
[421739634,1778086250000,-500.0,0.00027035,2]
[421739632,1778086250000,-71.92594374,0.00026984,14]
[421739639,1778086250000,-290.0,0.00027123,2]
[421739642,1778086250000,-207.0,0.00027233,2]
[421739625,1778086250000,-193.0,0.00026223,2]
[421739672,1778086250000,-218.066976,0.00027397,2]
[421739631,1778086250000,-113.98385226,0.00026984,14]
[421739626,1778086250000,-2257.8,0.00026296,2]
[421739633,1778086250000,-160.0,0.00027,31]
[421739682,1778086251000,-417.0,0.00027409,2]
[421739689,1778086251000,-800.0,0.0002778,2]
[421739684,1778086251000,-399.95088716,0.00027699,2]
[421739687,1778086251000,-800.0,0.0002778,2]
[421739688,1778086251000,-800.0,0.0002778,2]
[421739686,1778086251000,-800.0,0.0002778,2]
[421739685,1778086251000,-800.0,0.0002778,2]
[421739683,1778086251000,-3625.0,0.00027409,2]
[421739691,1778086251000,-800.0,0.0002778,2]
[421739676,1778086251000,-624.0,0.00027409,2]
[421739690,1778086251000,-800.0,0.0002778,2]
[421739678,1778086251000,-3536.0,0.00027409,2]
[421739680,1778086251000,-1268.0,0.00027409,2]
[421739679,1778086251000,-925.0,0.00027409,2]
[421739675,1778086251000,-27607.09,0.000274,7]
[421739677,1778086251000,-1352.0,0.00027409,2]
[421739674,1778086251000,-293.28,0.000274,7]
[421739673,1778086251000,-13899.58,0.00027397,10]
[421739693,1778086251000,-800.0,0.0002778,2]
[421739681,1778086251000,-332.189,0.00027409,2]
[421739700,1778086251000,-214.60306816,0.00028,7]
[421739702,1778086251000,-193.05,0.00028,2]
[421739697,1778086251000,-643.0,0.00028,2]
[421739696,1778086251000,-160.0,0.00028,2]
[421739715,1778086251000,-1421.568875,0.00028,30]
[421739712,1778086251000,-277.52270332,0.00017041,2]
[421739713,1778086251000,-1311.14861168,0.00028,30]
[421739710,1778086251000,-905.48229896,0.00028,30]
[421739711,1778086251000,-371.31294656,0.00017041,2]
[421739709,1778086251000,-36.32493509,0.00028,30]
[421739707,1778086251000,-193.05,0.00028,2]
[421739704,1778086251000,-193.05,0.00028,2]
[421739714,1778086251000,-2347.35,0.00028,30]
[421739705,1778086251000,-193.05,0.00028,2]
[421739706,1778086251000,-193.05,0.00028,2]
[421739699,1778086251000,-160.0,0.00028,35]
[421739698,1778086251000,-600.0,0.00028,2]
[421739692,1778086251000,-800.0,0.0002778,2]
[421739694,1778086251000,-333.0,0.0002778,2]
[421739701,1778086251000,-214.60306816,0.00028,10]
[421739703,1778086251000,-193.05,0.00028,2]
[421739695,1778086251000,-1500.0,0.000278,7]
[421739708,1778086251000,-193.05,0.00028,2]
[421739716,1778086262000,5000.0,0.0002685,120]
[421739717,1778086267000,201.41984677,0.0002685,120]
[421739718,1778086267000,152.0,0.00022,30]
[421739719,1778086290000,416.314536,0.00029436,120]
[421739720,1778086329000,208.157268,0.00029302,120]
[421739723,1778086792000,505.35,0.00029861,120]
[421739722,1778086792000,505.35,0.00027146,120]
[421739724,1778086935000,3399.0,0.00012143,2]
[421739725,1778086950000,3000.0,0.00012143,2]
[421739726,1778086964000,3000.0,0.00012143,2]
[421739727,1778087010000,1218.33447626,0.00015,14]
[421739730,1778087078000,10000.01,0.00012,2]
[421739729,1778087078000,10000.01,0.00012,2]
[421739732,1778087078000,10000.01,0.00012,2]
[421739728,1778087078000,601.01,0.00012,2]
[421739733,1778087078000,10000.01,0.00012,2]
[421739734,1778087078000,10000.01,0.00012,2]
[421739735,1778087078000,10000.01,0.00012,2]
[421739731,1778087078000,10000.01,0.00012,2]
[421739737,1778087079000,10000.01,0.00012,2]
[421739738,1778087079000,1393510.27232898,0.00012,2]
[421739736,1778087079000,10000.01,0.00012,2]
[421739739,1778087108000,670.796579,7.945e-05,2]
[421739742,1778087129000,1652947.88228111,0.000107,2]
[421739741,1778087129000,10000.01,0.000107,2]
[421739740,1778087129000,9329.213421,0.000107,2]
[421739743,1778087171000,209.56355865,0.00012,2]
[421739744,1778087274000,165.0,0.00012143,2]
[421739745,1778087363000,500.0,0.00029863,120]
[421739746,1778087363000,500.0,0.00029999,120]
[421739747,1778087380000,500.0,0.00029863,120]
[421739748,1778087381000,500.0,0.00029999,120]
[421739776,1778087431000,-166.95,0.00014366,2]
[421739775,1778087431000,-2000.0,0.00014286,2]
[421739773,1778087431000,-166.95,0.00014032,2]
[421739771,1778087431000,-150.0,0.00014,2]
[421739774,1778087431000,-200.0,0.00014117,2]
[421739772,1778087431000,-250.0,0.00014,2]
[421739768,1778087431000,-12000.96006383,0.0001399,2]
[421739766,1778087431000,-3810.7,0.00013813,2]
[421739770,1778087431000,-150.0,0.00014,2]
[421739767,1778087431000,-300.0,0.00013989,2]
[421739769,1778087431000,-10873.62,0.0001399,2]
[421739758,1778087431000,-250.0,0.0001363,2]
[421739763,1778087431000,-200.0,0.0001377,2]
[421739761,1778087431000,-185.49069389,0.00013713,2]
[421739762,1778087431000,-250.0,0.00013762,2]
[421739760,1778087431000,-2000.0,0.00013709,2]
[421739759,1778087431000,-166.95,0.00013699,2]
[421739757,1778087431000,-500.0,0.00013597,2]
[421739755,1778087431000,-500.0,0.000135,2]
[421739756,1778087431000,-9639.67492606,0.000135,2]
[421739754,1778087431000,-1200.0,0.00013499,2]
[421739780,1778087431000,-153916.85633686,0.00014741,2]
[421739764,1778087431000,-392.7,0.00013813,2]
[421739781,1778087431000,-153.12137068,0.00014768,2]
[421739765,1778087431000,-150.0,0.00013813,2]
[421739777,1778087431000,-150.0,0.00014685,2]
[421739800,1778087431000,-500.0,0.00014973,2]
[421739801,1778087431000,-1791.02892823,0.00014989,2]
[421739797,1778087431000,-300.0,0.00014957,2]
[421739796,1778087431000,-958.86187701,0.000149,2]
[421739806,1778087431000,-500.0,0.00014991,2]
[421739795,1778087431000,-421.47633002,0.000149,2]
[421739804,1778087431000,-500.0,0.00014991,2]
[421739803,1778087431000,-611.37566984,0.0001499,2]
[421739805,1778087431000,-200.0,0.00014991,2]
[421739794,1778087431000,-2041.1840494,0.000149,2]
[421739791,1778087431000,-31023.1653,0.000149,2]
[421739792,1778087431000,-2500.0,0.000149,2]
[421739779,1778087431000,-10448.24986314,0.00014741,2]
[421739789,1778087431000,-4568.29594115,0.000149,2]
[421739798,1778087431000,-250.0,0.00014957,2]
[421739787,1778087431000,-1680.0,0.00014849,2]
[421739784,1778087431000,-9999.99,0.00014841,2]
[421739793,1778087431000,-10084.53637797,0.000149,2]
[421739786,1778087431000,-300.0,0.00014849,2]
[421739785,1778087431000,-1094.57,0.00014842,2]
[421739788,1778087431000,-475.44,0.00014888,2]
[421739782,1778087431000,-150.0,0.0001484,2]
[421739783,1778087431000,-159.61374998,0.00014841,2]
[421739778,1778087431000,-166.95,0.000147,2]
[421739790,1778087431000,-5000.0,0.000149,2]
[421739837,1778087432000,-500.0,0.00014999,2]
[421739838,1778087432000,-500.0,0.00014999,2]
[421739842,1778087432000,-500.0,0.00014999,2]
[421739840,1778087432000,-500.0,0.00014999,2]
[421739834,1778087432000,-500.0,0.00014999,2]
[421739836,1778087432000,-500.0,0.00014999,2]
[421739835,1778087432000,-500.0,0.00014999,2]
[421739844,1778087432000,-500.0,0.00014999,2]
[421739841,1778087432000,-500.0,0.00014999,2]
[421739843,1778087432000,-500.0,0.00014999,2]
[421739839,1778087432000,-500.0,0.00014999,2]
[421739851,1778087432000,-500.0,0.00014999,2]
[421739846,1778087432000,-500.0,0.00014999,2]
[421739857,1778087432000,-500.0,0.00014999,2]
[421739845,1778087432000,-500.0,0.00014999,2]
[421739847,1778087432000,-500.0,0.00014999,2]
[421739833,1778087432000,-150.0,0.00014999,2]
[421739849,1778087432000,-500.0,0.00014999,2]
[421739848,1778087432000,-500.0,0.00014999,2]
[421739852,1778087432000,-500.0,0.00014999,2]
[421739855,1778087432000,-500.0,0.00014999,2]
[421739854,1778087432000,-500.0,0.00014999,2]
[421739856,1778087432000,-500.0,0.00014999,2]
[421739829,1778087432000,-151.0,0.00014991,2]
[421739825,1778087432000,-151.0,0.00014991,2]
[421739827,1778087432000,-151.0,0.00014991,2]
[421739808,1778087432000,-151.0,0.00014991,2]
[421739807,1778087432000,-559.60800407,0.00014991,2]
[421739815,1778087432000,-151.0,0.00014991,2]
[421739816,1778087432000,-151.0,0.00014991,2]
[421739809,1778087432000,-151.0,0.00014991,2]
[421739818,1778087432000,-151.0,0.00014991,2]
[421739817,1778087432000,-151.0,0.00014991,2]
[421739819,1778087432000,-151.0,0.00014991,2]
[421739812,1778087432000,-151.0,0.00014991,2]
[421739810,1778087432000,-151.0,0.00014991,2]
[421739814,1778087432000,-151.0,0.00014991,2]
[421739811,1778087432000,-151.0,0.00014991,2]
[421739813,1778087432000,-151.0,0.00014991,2]
[421739821,1778087432000,-151.0,0.00014991,2]
[421739832,1778087432000,-1027.43622372,0.00014999,5]
[421739831,1778087432000,-2317.31426788,0.00014998,2]
[421739820,1778087432000,-151.0,0.00014991,2]
[421739822,1778087432000,-151.0,0.00014991,2]
[421739823,1778087432000,-2080.17592889,0.00014991,2]
[421739824,1778087432000,-151.0,0.00014991,2]
[421739853,1778087432000,-500.0,0.00014999,2]
[421739830,1778087432000,-151.0,0.00014991,2]
[421739826,1778087432000,-151.0,0.00014991,2]
[421739828,1778087432000,-151.0,0.00014991,2]
[421739860,1778087432000,-500.0,0.00014999,2]
[421739850,1778087432000,-500.0,0.00014999,2]
[421739858,1778087432000,-500.0,0.00014999,2]
[421739885,1778087432000,-500.0,0.00014999,2]
[421739887,1778087432000,-500.0,0.00014999,2]
[421739886,1778087432000,-500.0,0.00014999,2]
[421739884,1778087432000,-500.0,0.00014999,2]
[421739883,1778087432000,-500.0,0.00014999,2]
[421739893,1778087432000,-500.0,0.00014999,2]
[421739898,1778087432000,-500.0,0.00014999,2]
[421739897,1778087432000,-500.0,0.00014999,2]
[421739894,1778087432000,-300.0,0.00014999,2]
[421739895,1778087432000,-191.45497406,0.00014999,2]
[421739881,1778087432000,-500.0,0.00014999,2]
[421739896,1778087432000,-500.0,0.00014999,2]
[421739904,1778087432000,-22137.88920034,0.00015,2]
[421739899,1778087432000,-500.0,0.00014999,2]
[421739902,1778087432000,-600.0,0.00014999,2]
[421739900,1778087432000,-500.0,0.00014999,2]
[421739905,1778087432000,-48894.86156799,0.00015,2]
[421739907,1778087432000,-544.144535,0.00015,2]
[421739906,1778087432000,-14257.37404842,0.00015,2]
[421739908,1778087432000,-3464.11972123,0.00015,2]
[421739909,1778087432000,-721.1518257,0.00015,2]
[421739910,1778087432000,-590.38845015,0.00015,2]
[421739903,1778087432000,-50943.50319255,0.00015,2]
[421739882,1778087432000,-500.0,0.00014999,2]
[421739901,1778087432000,-500.0,0.00014999,2]
[421739879,1778087432000,-500.0,0.00014999,2]
[421739892,1778087432000,-500.0,0.00014999,2]
[421739859,1778087432000,-500.0,0.00014999,2]